[Event "Late-Titled-Tuesday-Blitz-January-23-2024"]
[Site "Chess.com"]
[Date "2024.01.23"]
[Round "3"]
[White "svilson23"]
[Black "el008"]
[Result "0-1"]
[WhiteElo "2240"]
[BlackElo "2467"]
[TimeControl "180+1"]
[EndTime "14:27:56 PST"]
[Termination "el008 won on time"]

1. d4 {[%clk 0:03:00.9]} 1... e6 {[%clk 0:02:57.3]} 2. e4 {[%clk 0:03:00]} 2...
d5 {[%clk 0:02:56.3]} 3. exd5 {[%clk 0:03:00.9]} 3... exd5 {[%clk 0:02:57.1]} 4.
Nf3 {[%clk 0:03:01.8]} 4... Bd6 {[%clk 0:02:54.5]} 5. c4 {[%clk 0:03:01]} 5...
dxc4 {[%clk 0:02:54.7]} 6. Bxc4 {[%clk 0:02:59.7]} 6... Ne7 {[%clk 0:02:55.4]}
7. h3 {[%clk 0:02:56.9]} 7... h6 {[%clk 0:02:44.4]} 8. O-O {[%clk 0:02:56.6]}
8... a6 {[%clk 0:02:43.1]} 9. Re1 {[%clk 0:02:52.9]} 9... b5 {[%clk 0:02:42.7]}
10. Bb3 {[%clk 0:02:44.9]} 10... O-O {[%clk 0:02:39.3]} 11. a4 {[%clk
0:02:45.2]} 11... Bb7 {[%clk 0:02:37.8]} 12. axb5 {[%clk 0:02:43.5]} 12... axb5
{[%clk 0:02:38.7]} 13. Rxa8 {[%clk 0:02:42.3]} 13... Bxa8 {[%clk 0:02:39.6]} 14.
Nc3 {[%clk 0:02:40.3]} 14... b4 {[%clk 0:02:31.3]} 15. Ne4 {[%clk 0:02:40]}
15... Bd5 {[%clk 0:02:23.1]} 16. Nxd6 {[%clk 0:02:17.6]} 16... Qxd6 {[%clk
0:02:22.6]} 17. Bxd5 {[%clk 0:02:13.4]} 17... Nxd5 {[%clk 0:02:23.5]} 18. Nd2
{[%clk 0:01:43.8]} 18... Nc6 {[%clk 0:02:15]} 19. Nc4 {[%clk 0:01:44]} 19... Qg6
{[%clk 0:02:05.1]} 20. Qf3 {[%clk 0:01:40.7]} 20... Rd8 {[%clk 0:02:03.9]} 21.
Be3 {[%clk 0:01:31.8]} 21... Qc2 {[%clk 0:01:49.1]} 22. Rc1 {[%clk 0:01:29.3]}
22... Qd3 {[%clk 0:01:44]} 23. Qd1 {[%clk 0:00:40.2]} 23... Qg6 {[%clk
0:01:33.3]} 24. Qc2 {[%clk 0:00:27.1]} 24... Qe6 {[%clk 0:01:20.8]} 25. Qb3
{[%clk 0:00:17.3]} 25... Nf6 {[%clk 0:01:09.9]} 26. Nd2 {[%clk 0:00:10]} 26...
Nd5 {[%clk 0:01:10.6]} 27. Nc4 {[%clk 0:00:09.2]} 27... Ra8 {[%clk 0:01:10.2]}
28. Ne5 {[%clk 0:00:02.9]} 28... Nxe5 {[%clk 0:01:06.3]} 29. dxe5 {[%clk
0:00:03.8]} 29... Qxe5 {[%clk 0:01:07.2]} 30. Rc5 {[%clk 0:00:04]} 30... Ra1+
{[%clk 0:01:06.8]} 31. Rc1 {[%clk 0:00:03.3]} 31... Rxc1+ {[%clk 0:00:58.8]} 32.
Bxc1 {[%clk 0:00:04.2]} 32... c6 {[%clk 0:00:56.7]} 33. Bd2 {[%clk 0:00:03.2]}
33... c5 {[%clk 0:00:53.7]} 34. Qc4 {[%clk 0:00:03.2]} 34... Nb6 {[%clk
0:00:53]} 35. Qb5 {[%clk 0:00:03]} 35... Qd6 {[%clk 0:00:53.6]} 36. Qe8+ {[%clk
0:00:02.3]} 36... Kh7 {[%clk 0:00:53.4]} 37. Qe4+ {[%clk 0:00:02.8]} 37... g6
{[%clk 0:00:54]} 38. Qe8 {[%clk 0:00:02.4]} 38... Qd7 {[%clk 0:00:50.7]} 39. Qe3
{[%clk 0:00:01.4]} 39... Nc4 {[%clk 0:00:50.6]} 40. Qxh6+ {[%clk 0:00:01.2]}
40... Kg8 {[%clk 0:00:51.2]} 41. Bg5 {[%clk 0:00:01.4]} 41... Qd6 {[%clk
0:00:49.8]} 0-1

[Event "Late-Titled-Tuesday-Blitz-January-23-2024"]
[Site "Chess.com"]
[Date "2024.01.23"]
[Round "3"]
[White "KVAIDAN"]
[Black "SmirnovTimofey2000"]
[Result "0-1"]
[WhiteElo "2344"]
[BlackElo "1970"]
[TimeControl "180+1"]
[EndTime "14:27:56 PST"]
[Termination "SmirnovTimofey2000 won on time"]

1. f4 {[%clk 0:00:16.7]} 1... d5 {[%clk 0:02:57.3]} 2. Nf3 {[%clk 0:00:17.1]}
2... c6 {[%clk 0:02:57.8]} 3. e3 {[%clk 0:00:17.8]} 3... g6 {[%clk 0:02:57.4]}
4. b3 {[%clk 0:00:18.7]} 4... Bg7 {[%clk 0:02:57.1]} 5. Bb2 {[%clk 0:00:19.6]}
5... Bxb2 {[%clk 0:02:56.5]} 6. Nc3 {[%clk 0:00:20.5]} 6... Bxa1 {[%clk
0:02:55.2]} 7. Qxa1 {[%clk 0:00:21.1]} 7... f6 {[%clk 0:02:54.1]} 8. Ne2 {[%clk
0:00:21.7]} 8... Bg4 {[%clk 0:02:51]} 9. h4 {[%clk 0:00:22.6]} 9... Nd7 {[%clk
0:02:46.1]} 10. h5 {[%clk 0:00:23.5]} 10... Bxh5 {[%clk 0:02:34.9]} 11. Ng3
{[%clk 0:00:23.1]} 11... Bxf3 {[%clk 0:02:31.7]} 12. gxf3 {[%clk 0:00:23.3]}
12... Qc7 {[%clk 0:02:22.9]} 13. Bd3 {[%clk 0:00:22.8]} 13... f5 {[%clk
0:02:18.4]} 14. e4 {[%clk 0:00:22.7]} 14... Ngf6 {[%clk 0:01:24.4]} 15. exf5
{[%clk 0:00:22.2]} 15... Qxf4 {[%clk 0:01:18.2]} 16. Kf2 {[%clk 0:00:15.7]}
16... Ne5 {[%clk 0:01:03.2]} 17. fxg6 {[%clk 0:00:09.7]} 17... O-O-O {[%clk
0:00:29.2]} 18. g7 {[%clk 0:00:07.1]} 18... Qxf3+ {[%clk 0:00:24]} 19. Ke1
{[%clk 0:00:05.3]} 19... Nxd3+ {[%clk 0:00:20.9]} 20. cxd3 {[%clk 0:00:03.3]}
20... Qxg3+ {[%clk 0:00:20.6]} 21. Kd1 {[%clk 0:00:03.7]} 21... Qf3+ {[%clk
0:00:20.7]} 22. Kc2 {[%clk 0:00:02.4]} 22... Rhg8 {[%clk 0:00:14.8]} 0-1

[Event "Late-Titled-Tuesday-Blitz-January-23-2024"]
[Site "Chess.com"]
[Date "2024.01.23"]
[Round "3"]
[White "guillembaches"]
[Black "Zhigalko_Sergei"]
[Result "0-1"]
[WhiteElo "2527"]
[BlackElo "2970"]
[TimeControl "180+1"]
[EndTime "14:28:01 PST"]
[Termination "Zhigalko_Sergei won by resignation"]

1. d4 {[%clk 0:03:00.9]} 1... Nf6 {[%clk 0:03:00.2]} 2. Nf3 {[%clk 0:03:01.5]}
2... e6 {[%clk 0:03:01.1]} 3. Bg5 {[%clk 0:03:01.9]} 3... h6 {[%clk 0:03:01.1]}
4. Bh4 {[%clk 0:03:01.7]} 4... b6 {[%clk 0:03:01.5]} 5. Nbd2 {[%clk 0:03:02]}
5... Bb7 {[%clk 0:03:01.7]} 6. e3 {[%clk 0:03:02.1]} 6... Be7 {[%clk 0:03:02.3]}
7. Bd3 {[%clk 0:03:01.9]} 7... d6 {[%clk 0:03:03]} 8. Bxf6 {[%clk 0:03:02]} 8...
Bxf6 {[%clk 0:03:03.2]} 9. c3 {[%clk 0:03:02.6]} 9... c5 {[%clk 0:03:02.8]} 10.
Qe2 {[%clk 0:03:02.9]} 10... a6 {[%clk 0:03:00.1]} 11. O-O-O {[%clk 0:03:02.7]}
11... Nc6 {[%clk 0:03:00.2]} 12. Kb1 {[%clk 0:03:02.5]} 12... Qc7 {[%clk
0:02:53.6]} 13. h4 {[%clk 0:02:59.4]} 13... b5 {[%clk 0:02:53.3]} 14. Ne4 {[%clk
0:02:52.3]} 14... Be7 {[%clk 0:02:53.1]} 15. g4 {[%clk 0:02:49.4]} 15... O-O-O
{[%clk 0:02:47.6]} 16. g5 {[%clk 0:02:43.5]} 16... c4 {[%clk 0:02:21.4]} 17. Bc2
{[%clk 0:02:41.6]} 17... b4 {[%clk 0:02:21.4]} 18. Qd2 {[%clk 0:02:07.4]} 18...
Qb6 {[%clk 0:01:34.7]} 19. Ba4 {[%clk 0:01:37.1]} 19... Na5 {[%clk 0:01:11.4]}
20. Qc2 {[%clk 0:01:23.2]} 20... Kb8 {[%clk 0:00:50.9]} 21. cxb4 {[%clk
0:01:09.4]} 21... Qxb4 {[%clk 0:00:51.8]} 22. Nfd2 {[%clk 0:01:08.5]} 22... hxg5
{[%clk 0:00:31]} 23. hxg5 {[%clk 0:01:06.6]} 23... Rxh1 {[%clk 0:00:31.9]} 24.
Rxh1 {[%clk 0:01:06.6]} 24... c3 {[%clk 0:00:32.6]} 25. Rc1 {[%clk 0:00:36.1]}
25... cxd2 {[%clk 0:00:24.2]} 26. Qc7+ {[%clk 0:00:35.6]} 26... Ka7 {[%clk
0:00:22.8]} 27. Nxd2 {[%clk 0:00:36]} 27... Qxa4 {[%clk 0:00:13.7]} 28. Qxe7
{[%clk 0:00:35.6]} 28... Rd7 {[%clk 0:00:14.2]} 29. Qe8 {[%clk 0:00:34.4]} 29...
Qb5 {[%clk 0:00:09.6]} 30. a4 {[%clk 0:00:29.7]} 30... Qxa4 {[%clk 0:00:07.1]}
31. Rc7 {[%clk 0:00:29.8]} 31... Qd1+ {[%clk 0:00:06.6]} 32. Ka2 {[%clk
0:00:30]} 32... Rxc7 {[%clk 0:00:05.6]} 33. Qa8+ {[%clk 0:00:25.8]} 33... Bxa8
{[%clk 0:00:05.4]} 0-1

[Event "Late-Titled-Tuesday-Blitz-January-23-2024"]
[Site "Chess.com"]
[Date "2024.01.23"]
[Round "3"]
[White "Doomfist26"]
[Black "Carlitus2004"]
[Result "1-0"]
[WhiteElo "2601"]
[BlackElo "2411"]
[TimeControl "180+1"]
[EndTime "14:28:02 PST"]
[Termination "Doomfist26 won on time"]

1. e4 {[%clk 0:03:00.9]} 1... Nc6 {[%clk 0:02:47.8]} 2. d4 {[%clk 0:02:59.8]}
2... d5 {[%clk 0:02:47.9]} 3. e5 {[%clk 0:02:57.4]} 3... Bf5 {[%clk 0:02:48]} 4.
Nf3 {[%clk 0:02:55.2]} 4... e6 {[%clk 0:02:46.4]} 5. Be2 {[%clk 0:02:52.9]} 5...
h6 {[%clk 0:02:40]} 6. O-O {[%clk 0:02:52.2]} 6... Nge7 {[%clk 0:02:40.4]} 7.
Nbd2 {[%clk 0:02:51.3]} 7... g5 {[%clk 0:02:39.3]} 8. Nb3 {[%clk 0:02:48.3]}
8... Bg7 {[%clk 0:02:37.3]} 9. Ne1 {[%clk 0:02:48.1]} 9... O-O {[%clk 0:02:30]}
10. f4 {[%clk 0:02:47.3]} 10... gxf4 {[%clk 0:02:18.6]} 11. Bxf4 {[%clk
0:02:46.8]} 11... Ng6 {[%clk 0:02:19.3]} 12. Be3 {[%clk 0:02:43.6]} 12... Be4
{[%clk 0:02:16.9]} 13. Nc5 {[%clk 0:02:36]} 13... b6 {[%clk 0:02:11]} 14. Nxe4
{[%clk 0:02:33.8]} 14... dxe4 {[%clk 0:02:11.9]} 15. Bh5 {[%clk 0:02:28.3]}
15... Nce7 {[%clk 0:02:10.6]} 16. Qg4 {[%clk 0:02:25]} 16... Qd5 {[%clk
0:02:02.5]} 17. c4 {[%clk 0:01:56.3]} 17... Qxc4 {[%clk 0:01:56.8]} 18. Qxe4
{[%clk 0:01:54.8]} 18... Qd5 {[%clk 0:01:52.2]} 19. Bxg6 {[%clk 0:01:50.5]}
19... fxg6 {[%clk 0:01:50.2]} 20. Qg4 {[%clk 0:01:46.1]} 20... Kh7 {[%clk
0:01:46]} 21. Nf3 {[%clk 0:01:42.9]} 21... Nf5 {[%clk 0:01:41.4]} 22. Bf2 {[%clk
0:01:43.1]} 22... Rad8 {[%clk 0:01:41.8]} 23. Rac1 {[%clk 0:01:42.4]} 23... Rd7
{[%clk 0:01:42.4]} 24. Qh3 {[%clk 0:01:38.5]} 24... Kg8 {[%clk 0:01:31]} 25. b3
{[%clk 0:01:34.6]} 25... Rc8 {[%clk 0:00:59.2]} 26. Rc4 {[%clk 0:01:31]} 26...
c5 {[%clk 0:00:53.5]} 27. dxc5 {[%clk 0:01:29.4]} 27... bxc5 {[%clk 0:00:54.4]}
28. Re1 {[%clk 0:01:18.1]} 28... Rdd8 {[%clk 0:00:28.8]} 29. Qg4 {[%clk
0:00:45.8]} 29... Kh7 {[%clk 0:00:28]} 30. h3 {[%clk 0:00:46]} 30... a6 {[%clk
0:00:21.9]} 31. Qf4 {[%clk 0:00:37.6]} 31... Rf8 {[%clk 0:00:10.9]} 32. Qc1
{[%clk 0:00:37.7]} 32... Ne7 {[%clk 0:00:04.1]} 33. Rxc5 {[%clk 0:00:36.8]}
33... Rxc5 {[%clk 0:00:04.2]} 34. Qxc5 {[%clk 0:00:37.5]} 34... Qd7 {[%clk
0:00:02.8]} 35. Qd6 {[%clk 0:00:37.5]} 35... Rd8 {[%clk 0:00:02.9]} 36. Rd1
{[%clk 0:00:36.7]} 36... Qxd6 {[%clk 0:00:02.1]} 37. exd6 {[%clk 0:00:37.4]}
37... Nf5 {[%clk 0:00:02.3]} 38. d7 {[%clk 0:00:37.7]} 38... Ne7 {[%clk
0:00:01.3]} 39. Bb6 {[%clk 0:00:38.1]} 1-0

[Event "Late-Titled-Tuesday-Blitz-January-23-2024"]
[Site "Chess.com"]
[Date "2024.01.23"]
[Round "3"]
[White "nindjaxx8"]
[Black "platy3"]
[Result "1-0"]
[WhiteElo "2619"]
[BlackElo "2861"]
[TimeControl "180+1"]
[EndTime "14:28:03 PST"]
[Termination "nindjaxx8 won on time"]

1. d4 {[%clk 0:02:56]} 1... Nf6 {[%clk 0:02:59.5]} 2. c4 {[%clk 0:02:52.2]} 2...
e6 {[%clk 0:03:00]} 3. Nc3 {[%clk 0:02:51.2]} 3... Bb4 {[%clk 0:02:59.4]} 4. Qc2
{[%clk 0:02:45.5]} 4... d6 {[%clk 0:02:57.2]} 5. Nf3 {[%clk 0:02:42.6]} 5... O-O
{[%clk 0:02:51]} 6. Bg5 {[%clk 0:02:42]} 6... h6 {[%clk 0:02:50.6]} 7. Bh4
{[%clk 0:02:40.5]} 7... c5 {[%clk 0:02:43.2]} 8. dxc5 {[%clk 0:02:36.3]} 8...
Bxc5 {[%clk 0:02:42.5]} 9. e3 {[%clk 0:02:35.4]} 9... Nc6 {[%clk 0:02:42.7]} 10.
a3 {[%clk 0:02:34.3]} 10... a6 {[%clk 0:02:37.1]} 11. Be2 {[%clk 0:02:32.9]}
11... e5 {[%clk 0:02:24.6]} 12. Nd5 {[%clk 0:02:25.4]} 12... Qa5+ {[%clk
0:02:11.4]} 13. Nd2 {[%clk 0:02:22.6]} 13... Nxd5 {[%clk 0:01:25]} 14. cxd5
{[%clk 0:02:23.5]} 14... g5 {[%clk 0:00:54.4]} 15. dxc6 {[%clk 0:02:00.8]} 15...
gxh4 {[%clk 0:00:54.3]} 16. O-O {[%clk 0:01:59.1]} 16... Qd8 {[%clk 0:00:44.1]}
17. cxb7 {[%clk 0:01:47.1]} 17... Bxb7 {[%clk 0:00:43.5]} 18. Bf3 {[%clk
0:01:48]} 18... Bxf3 {[%clk 0:00:38.6]} 19. Nxf3 {[%clk 0:01:48.9]} 19... h3
{[%clk 0:00:28.8]} 20. gxh3 {[%clk 0:01:34.5]} 20... Qf6 {[%clk 0:00:29]} 21.
Qe4 {[%clk 0:01:32.5]} 21... Kh8 {[%clk 0:00:29.2]} 22. Kh1 {[%clk 0:01:32.3]}
22... Qe6 {[%clk 0:00:23.8]} 23. Rg1 {[%clk 0:01:28.5]} 23... Qxh3 {[%clk
0:00:16.7]} 24. Rg3 {[%clk 0:01:27.1]} 24... Qe6 {[%clk 0:00:14.7]} 25. Qh4
{[%clk 0:01:03]} 25... Rg8 {[%clk 0:00:10.4]} 26. Ng5 {[%clk 0:01:02.2]} 26...
Qf6 {[%clk 0:00:08.6]} 27. Nxf7+ {[%clk 0:00:34.2]} 27... Qxf7 {[%clk
0:00:07.4]} 28. Qxh6+ {[%clk 0:00:34.4]} 28... Qh7 {[%clk 0:00:08]} 29. Qf6+
{[%clk 0:00:32.3]} 29... Rg7 {[%clk 0:00:08.7]} 30. Rag1 {[%clk 0:00:26.8]}
30... Rg8 {[%clk 0:00:06.4]} 31. Rg6 {[%clk 0:00:22.3]} 31... e4 {[%clk
0:00:01.9]} 32. Rh6 {[%clk 0:00:20.6]} 1-0

[Event "Late-Titled-Tuesday-Blitz-January-23-2024"]
[Site "Chess.com"]
[Date "2024.01.23"]
[Round "3"]
[White "Piotrek1979"]
[Black "Mazetovic"]
[Result "0-1"]
[WhiteElo "2395"]
[BlackElo "2595"]
[TimeControl "180+1"]
[EndTime "14:28:04 PST"]
[Termination "Mazetovic won on time"]

1. d4 {[%clk 0:03:00.9]} 1... Nf6 {[%clk 0:02:59.9]} 2. c4 {[%clk 0:03:00.3]}
2... g6 {[%clk 0:02:59.9]} 3. Nc3 {[%clk 0:02:59.4]} 3... Bg7 {[%clk 0:03:00.6]}
4. e4 {[%clk 0:02:59.8]} 4... d6 {[%clk 0:03:01.1]} 5. h3 {[%clk 0:03:00.1]}
5... Nc6 {[%clk 0:03:00]} 6. Nf3 {[%clk 0:02:58.7]} 6... O-O {[%clk 0:02:59.5]}
7. d5 {[%clk 0:02:58.8]} 7... Nb4 {[%clk 0:02:50.1]} 8. a3 {[%clk 0:02:54.8]}
8... Na6 {[%clk 0:02:46.8]} 9. Bd3 {[%clk 0:02:55.4]} 9... e6 {[%clk 0:02:46.3]}
10. O-O {[%clk 0:02:54.4]} 10... exd5 {[%clk 0:02:45.6]} 11. cxd5 {[%clk
0:02:51.6]} 11... Nc5 {[%clk 0:02:44.1]} 12. Bc2 {[%clk 0:02:51.7]} 12... a5
{[%clk 0:02:44.2]} 13. Re1 {[%clk 0:02:50.5]} 13... Re8 {[%clk 0:02:44.2]} 14.
Bg5 {[%clk 0:02:48.9]} 14... h6 {[%clk 0:02:43.8]} 15. Bh4 {[%clk 0:02:48.8]}
15... g5 {[%clk 0:02:43.9]} 16. Bg3 {[%clk 0:02:48.8]} 16... Nh5 {[%clk
0:02:43.8]} 17. Bh2 {[%clk 0:02:46.8]} 17... Nf4 {[%clk 0:02:43.2]} 18. Nd4
{[%clk 0:02:40.7]} 18... Nfd3 {[%clk 0:02:29.4]} 19. Bxd3 {[%clk 0:02:31.9]}
19... Bxd4 {[%clk 0:02:25.3]} 20. Bb5 {[%clk 0:02:30.9]} 20... Bxc3 {[%clk
0:02:18.2]} 21. bxc3 {[%clk 0:02:03.4]} 21... Rxe4 {[%clk 0:02:16.4]} 22. Rxe4
{[%clk 0:01:44.8]} 22... Nxe4 {[%clk 0:02:17.3]} 23. Qd4 {[%clk 0:01:42.1]}
23... Nf6 {[%clk 0:02:04.5]} 24. Re1 {[%clk 0:01:38.5]} 24... Bf5 {[%clk
0:01:59]} 25. g4 {[%clk 0:01:35.5]} 25... Bg6 {[%clk 0:01:55.2]} 26. f4 {[%clk
0:01:30.2]} 26... gxf4 {[%clk 0:01:44.1]} 27. Bxf4 {[%clk 0:01:31.1]} 27... Nxd5
{[%clk 0:01:43]} 28. Bxh6 {[%clk 0:01:24]} 28... Qf6 {[%clk 0:01:35.1]} 29. Qxd5
{[%clk 0:00:28.9]} 29... Qxc3 {[%clk 0:01:24.5]} 30. Rc1 {[%clk 0:00:18.3]}
30... Qxh3 {[%clk 0:01:02.7]} 31. Qd2 {[%clk 0:00:01.9]} 31... Be4 {[%clk
0:00:45.7]} 32. Qh2 {[%clk 0:00:02.5]} 32... Qxg4+ {[%clk 0:00:41.9]} 33. Kf2
{[%clk 0:00:03.2]} 33... Qf5+ {[%clk 0:00:38.9]} 34. Qf4 {[%clk 0:00:03]} 34...
Qxf4+ {[%clk 0:00:28.1]} 35. Bxf4 {[%clk 0:00:01.6]} 35... c6 {[%clk 0:00:28.5]}
0-1

[Event "Late-Titled-Tuesday-Blitz-January-23-2024"]
[Site "Chess.com"]
[Date "2024.01.23"]
[Round "3"]
[White "Ducke13"]
[Black "Slovak_fighter2000"]
[Result "0-1"]
[WhiteElo "2295"]
[BlackElo "2525"]
[TimeControl "180+1"]
[EndTime "14:28:04 PST"]
[Termination "Slovak_fighter2000 won by checkmate"]

1. d4 {[%clk 0:03:00.9]} 1... Nf6 {[%clk 0:02:58.3]} 2. g3 {[%clk 0:03:00.8]}
2... d5 {[%clk 0:02:56.4]} 3. Nf3 {[%clk 0:02:59.2]} 3... Bf5 {[%clk 0:02:56.9]}
4. c4 {[%clk 0:02:59.3]} 4... c6 {[%clk 0:02:51.2]} 5. Nc3 {[%clk 0:02:58.7]}
5... e6 {[%clk 0:02:51.1]} 6. Nh4 {[%clk 0:02:59.3]} 6... Bg6 {[%clk 0:02:50.2]}
7. Qb3 {[%clk 0:02:59.6]} 7... Qb6 {[%clk 0:02:49.7]} 8. Nxg6 {[%clk 0:03:00.3]}
8... hxg6 {[%clk 0:02:49.5]} 9. c5 {[%clk 0:03:01]} 9... Qc7 {[%clk 0:02:49.3]}
10. Bf4 {[%clk 0:02:59.9]} 10... Qc8 {[%clk 0:02:49.2]} 11. Bg2 {[%clk
0:03:00.6]} 11... Nbd7 {[%clk 0:02:48.5]} 12. O-O {[%clk 0:03:00.9]} 12... Be7
{[%clk 0:02:48.9]} 13. Qc2 {[%clk 0:02:59.9]} 13... O-O {[%clk 0:02:44]} 14. b4
{[%clk 0:02:59.8]} 14... Re8 {[%clk 0:02:42]} 15. Rfc1 {[%clk 0:02:58.2]} 15...
Bf8 {[%clk 0:02:40.2]} 16. a4 {[%clk 0:02:58]} 16... e5 {[%clk 0:02:39.5]} 17.
dxe5 {[%clk 0:02:48.7]} 17... Nxe5 {[%clk 0:02:40.4]} 18. e4 {[%clk 0:02:20.1]}
18... dxe4 {[%clk 0:02:28.6]} 19. Nxe4 {[%clk 0:02:17.2]} 19... Nxe4 {[%clk
0:02:23.5]} 20. Bxe4 {[%clk 0:02:18.1]} 20... Qh3 {[%clk 0:02:20.4]} 21. Bg2
{[%clk 0:02:10.8]} 21... Qh5 {[%clk 0:02:19.1]} 22. h3 {[%clk 0:01:41.4]} 22...
Rad8 {[%clk 0:02:13.3]} 23. Rd1 {[%clk 0:01:34.8]} 23... Nf3+ {[%clk 0:02:10.2]}
24. Kh1 {[%clk 0:01:29.9]} 24... Ng5 {[%clk 0:02:00]} 25. h4 {[%clk 0:01:22.9]}
25... Ne6 {[%clk 0:01:53.9]} 26. Be3 {[%clk 0:01:13.5]} 26... g5 {[%clk
0:01:41.7]} 27. Qf5 {[%clk 0:01:01.1]} 27... Rxd1+ {[%clk 0:01:31.6]} 28. Rxd1
{[%clk 0:00:55.3]} 28... Qxd1+ {[%clk 0:01:12.2]} 29. Kh2 {[%clk 0:00:55.6]}
29... gxh4 {[%clk 0:01:08.7]} 30. gxh4 {[%clk 0:00:51.6]} 30... g6 {[%clk
0:01:08.5]} 31. Qh3 {[%clk 0:00:49.1]} 31... Bg7 {[%clk 0:01:03.3]} 32. Bf3
{[%clk 0:00:49.3]} 32... Qd8 {[%clk 0:00:49.3]} 33. Kg2 {[%clk 0:00:47.7]} 33...
Qf6 {[%clk 0:00:46.4]} 34. a5 {[%clk 0:00:43.5]} 34... Nf4+ {[%clk 0:00:46.2]}
35. Bxf4 {[%clk 0:00:43.6]} 35... Qxf4 {[%clk 0:00:47.1]} 36. a6 {[%clk
0:00:44.2]} 36... bxa6 {[%clk 0:00:43.4]} 37. Bxc6 {[%clk 0:00:43.6]} 37... Re2
{[%clk 0:00:43.3]} 38. Bf3 {[%clk 0:00:43.2]} 38... Bd4 {[%clk 0:00:38]} 39.
Qc8+ {[%clk 0:00:32.1]} 39... Kg7 {[%clk 0:00:37.6]} 40. Bxe2 {[%clk 0:00:32.5]}
40... Qxf2+ {[%clk 0:00:37.8]} 41. Kh3 {[%clk 0:00:33.1]} 41... Qe3+ {[%clk
0:00:35.8]} 42. Kg2 {[%clk 0:00:20]} 42... Qxe2+ {[%clk 0:00:36]} 43. Kg3 {[%clk
0:00:20.2]} 43... Be5+ {[%clk 0:00:34.9]} 44. Kh3 {[%clk 0:00:20.7]} 44... Qh2+
{[%clk 0:00:32.8]} 45. Kg4 {[%clk 0:00:20.9]} 45... Qg3# {[%clk 0:00:33.7]} 0-1

[Event "Late-Titled-Tuesday-Blitz-January-23-2024"]
[Site "Chess.com"]
[Date "2024.01.23"]
[Round "3"]
[White "Jem"]
[Black "Mikhal867"]
[Result "0-1"]
[WhiteElo "2146"]
[BlackElo "2427"]
[TimeControl "180+1"]
[EndTime "14:28:07 PST"]
[Termination "Mikhal867 won on time"]

1. e4 {[%clk 0:03:00.9]} 1... g6 {[%clk 0:02:55.5]} 2. d4 {[%clk 0:03:00.4]}
2... Bg7 {[%clk 0:02:54.7]} 3. Nc3 {[%clk 0:03:00.7]} 3... d6 {[%clk 0:02:51.4]}
4. f4 {[%clk 0:03:00.7]} 4... Nf6 {[%clk 0:02:50.4]} 5. Nf3 {[%clk 0:03:00.8]}
5... O-O {[%clk 0:02:49.7]} 6. e5 {[%clk 0:03:01]} 6... Nfd7 {[%clk 0:02:49.1]}
7. h4 {[%clk 0:02:49.6]} 7... c5 {[%clk 0:02:48.2]} 8. h5 {[%clk 0:02:48.8]}
8... cxd4 {[%clk 0:02:47.9]} 9. hxg6 {[%clk 0:02:45.6]} 9... dxc3 {[%clk
0:02:42]} 10. gxf7+ {[%clk 0:02:45.4]} 10... Rxf7 {[%clk 0:02:33.1]} 11. Bc4
{[%clk 0:02:43.8]} 11... e6 {[%clk 0:02:11.9]} 12. Ng5 {[%clk 0:02:40.9]} 12...
d5 {[%clk 0:01:41.6]} 13. Qh5 {[%clk 0:02:32.3]} 13... Qe7 {[%clk 0:01:41.4]}
14. Bd3 {[%clk 0:02:05.6]} 14... h6 {[%clk 0:01:34.1]} 15. Nxf7 {[%clk
0:01:53.2]} 15... Qxf7 {[%clk 0:01:32.4]} 16. Bg6 {[%clk 0:01:52.1]} 16... Qe7
{[%clk 0:01:24.9]} 17. bxc3 {[%clk 0:01:44.6]} 17... Nf8 {[%clk 0:01:24.5]} 18.
Bd3 {[%clk 0:01:40.1]} 18... Bd7 {[%clk 0:01:20.9]} 19. Rh4 {[%clk 0:01:28.6]}
19... Be8 {[%clk 0:01:17.6]} 20. Qg4 {[%clk 0:01:23.1]} 20... Nbd7 {[%clk
0:01:05.5]} 21. a4 {[%clk 0:01:20.2]} 21... Bg6 {[%clk 0:01:03.4]} 22. Ba3
{[%clk 0:01:17.8]} 22... Qf7 {[%clk 0:01:03.6]} 23. g3 {[%clk 0:00:41.3]} 23...
Rc8 {[%clk 0:00:52.1]} 24. Kd2 {[%clk 0:00:36]} 24... Nc5 {[%clk 0:00:46.1]} 25.
Rah1 {[%clk 0:00:28.7]} 25... Bxd3 {[%clk 0:00:26.9]} 26. cxd3 {[%clk
0:00:26.4]} 26... Qg6 {[%clk 0:00:27.2]} 27. Qxg6 {[%clk 0:00:18.1]} 27... Nxg6
{[%clk 0:00:26.8]} 28. Rg4 {[%clk 0:00:18]} 28... Kf7 {[%clk 0:00:25.5]} 29.
Bxc5 {[%clk 0:00:09.2]} 29... Rxc5 {[%clk 0:00:25.1]} 30. Rb1 {[%clk 0:00:08.8]}
30... b6 {[%clk 0:00:24.6]} 31. d4 {[%clk 0:00:05.5]} 31... Ra5 {[%clk 0:00:21]}
32. Rb4 {[%clk 0:00:02.7]} 32... Bf8 {[%clk 0:00:20.9]} 0-1

[Event "Late-Titled-Tuesday-Blitz-January-23-2024"]
[Site "Chess.com"]
[Date "2024.01.23"]
[Round "3"]
[White "DonJuan_34"]
[Black "PawnEatingZombie"]
[Result "0-1"]
[WhiteElo "2383"]
[BlackElo "2115"]
[TimeControl "180+1"]
[EndTime "14:28:07 PST"]
[Termination "PawnEatingZombie won on time"]

1. d4 {[%clk 0:03:00.9]} 1... Nf6 {[%clk 0:02:59.6]} 2. Nf3 {[%clk 0:03:00.9]}
2... g6 {[%clk 0:03:00.1]} 3. c4 {[%clk 0:03:00.8]} 3... Bg7 {[%clk 0:03:00.6]}
4. Nc3 {[%clk 0:03:00.8]} 4... O-O {[%clk 0:03:01.2]} 5. e4 {[%clk 0:03:00.2]}
5... d6 {[%clk 0:03:01.7]} 6. Be2 {[%clk 0:03:00.4]} 6... e5 {[%clk 0:03:02]} 7.
O-O {[%clk 0:02:59.9]} 7... exd4 {[%clk 0:03:02.1]} 8. Nxd4 {[%clk 0:02:59.6]}
8... Re8 {[%clk 0:03:01.4]} 9. f3 {[%clk 0:02:54.5]} 9... c6 {[%clk 0:03:01.5]}
10. Bg5 {[%clk 0:02:45]} 10... Qb6 {[%clk 0:02:59.6]} 11. Na4 {[%clk 0:02:38]}
11... Qa5 {[%clk 0:02:29.3]} 12. Bd2 {[%clk 0:02:25.9]} 12... Qd8 {[%clk
0:02:24.6]} 13. Bc3 {[%clk 0:02:12.5]} 13... d5 {[%clk 0:02:23.9]} 14. exd5
{[%clk 0:02:03.8]} 14... cxd5 {[%clk 0:02:24]} 15. c5 {[%clk 0:01:58.4]} 15...
Nc6 {[%clk 0:02:22.5]} 16. Nxc6 {[%clk 0:01:54.3]} 16... bxc6 {[%clk 0:02:22.2]}
17. b4 {[%clk 0:01:54.8]} 17... Rb8 {[%clk 0:02:16.9]} 18. Qd2 {[%clk
0:01:40.4]} 18... d4 {[%clk 0:01:41.1]} 19. Bb2 {[%clk 0:00:53.6]} 19... Nd5
{[%clk 0:01:21.8]} 20. a3 {[%clk 0:00:39.5]} 20... Nc3 {[%clk 0:01:09.4]} 21.
Bxc3 {[%clk 0:00:31.4]} 21... dxc3 {[%clk 0:01:08.6]} 22. Qxd8 {[%clk
0:00:31.9]} 22... Rxd8 {[%clk 0:01:08.8]} 23. Rac1 {[%clk 0:00:28.3]} 23... Rd2
{[%clk 0:00:47.5]} 24. Bd1 {[%clk 0:00:27.6]} 24... Ra2 {[%clk 0:00:33.1]} 25.
Nxc3 {[%clk 0:00:17.5]} 25... Rxa3 {[%clk 0:00:33.1]} 26. Ne4 {[%clk 0:00:18]}
26... Rxb4 {[%clk 0:00:28.1]} 27. Nd6 {[%clk 0:00:18.1]} 27... Be6 {[%clk
0:00:27.5]} 28. Be2 {[%clk 0:00:17.6]} 28... Rb2 {[%clk 0:00:26.4]} 29. Bc4
{[%clk 0:00:10.6]} 29... Bd4+ {[%clk 0:00:20.7]} 30. Kh1 {[%clk 0:00:10.3]}
30... Bxc5 {[%clk 0:00:15.8]} 31. Nb7 {[%clk 0:00:06.7]} 31... Be3 {[%clk
0:00:14.1]} 0-1